bitfinex/quotes_ETHUSD_20260213
["timestamp","ask_amount","ask_price","bid_price","bid_amount"]
[1771011478341,0.0011,2058.2,2057.4,0.49871785]
[1771011478523,0.0011,2058.2,2057.6,0.49871785]
[1771011478927,0.0011,2058.4,2057.8,0.49871785]
[1771011479125,0.0011,2058.4,2058.0,0.49871785]
[1771011480835,0.0011,2058.6,2058.2,0.46162145]
[1771011481858,0.0011,2058.6,2058.0,0.46162145]
[1771011482874,9.19465889,2058.6,2057.8,0.46162145]
[1771011483163,0.31448682,2058.5,2057.8,0.46162145]
[1771011485068,1.52899175,2058.5,2057.8,0.46162145]
[1771011485667,0.31448682,2058.5,2057.8,0.46162145]
[1771011485946,1.52898112,2058.5,2057.8,0.46162145]
[1771011486157,0.31448682,2058.5,2057.8,0.46162145]
[1771011486770,0.0011,2058.6,2057.8,0.46162145]
[1771011487761,0.0011,2058.6,2058.0,0.46162145]
[1771011490262,0.0011,2058.8,2058.6,0.46162145]
[1771011490835,0.0011,2058.8,2058.2,0.46162145]
[1771011491734,0.0011,2058.8,2058.3,7.66459568]
[1771011491934,0.0011,2059.1,2058.6,0.46162145]
[1771011492151,0.0011,2059.1,2058.7,0.46162145]
[1771011492959,0.0011,2058.9,2058.6,1.019]
[1771011494168,0.0011,2058.9,2058.6,1.48062145]
[1771011494669,0.0011,2058.9,2058.6,1.019]
[1771011498262,0.0011,2058.9,2058.3,8.12621713]
[1771011498462,0.0011,2058.9,2058.4,0.46162145]
[1771011499371,0.0011,2058.9,2058.3,1.02]
[1771011500069,0.0011,2058.9,2058.3,1.48162145]
[1771011502373,0.0011,2058.9,2057.9,0.46162145]
[1771011502557,0.0011,2058.9,2058.0,0.46162145]
[1771011503546,0.31558682,2058.9,2058.0,0.46162145]
[1771011504351,1.52985336,2058.9,2058.0,0.46162145]
[1771011504652,1.52985336,2058.9,2058.0,0.46262145]
[1771011506077,0.31448682,2058.7,2058.0,0.46262145]
[1771011506781,1.52887681,2058.7,2058.0,0.46262145]
[1771011507758,0.31448682,2058.5,2058.0,0.001]
[1771011507961,0.31448682,2058.3,2058.0,0.001]
[1771011508164,7.65586878,2058.4,2058.0,0.001]
[1771011508362,0.31448682,2058.5,2058.0,0.001]
[1771011508770,1.21453556,2058.4,2058.0,0.001]
[1771011508989,1.52902238,2058.4,2058.0,0.001]
[1771011509568,1.52900284,2058.5,2058.0,0.001]
[1771011510393,0.31448682,2058.5,2058.0,0.001]
[1771011511003,1.52896781,2058.5,2058.0,0.001]
[1771011511568,2.38946271,2058.6,2058.0,0.001]
[1771011511768,2.70394953,2058.6,2058.0,0.001]
[1771011512178,1.48948682,2058.6,2058.0,0.001]
[1771011512500,0.0011,2058.9,2058.4,0.47831848]
[1771011519010,0.31558682,2058.9,2058.2,0.48920419]
[1771011519616,0.31558682,2058.9,2058.0,0.001]
[1771011519617,0.31558682,2058.9,2058.0,0.49020419]
[1771011519995,1.21429959,2058.8,2058.0,0.49020419]
[1771011520901,0.31448682,2058.7,2058.0,0.49020419]
[1771011522206,1.21441756,2058.6,2058.0,0.49020419]
[1771011522378,0.31448682,2058.7,2058.0,0.49020419]
[1771011522586,1.52888934,2058.7,2058.0,0.49020419]
[1771011524697,0.31448682,2058.6,2058.0,0.001]
[1771011525505,1.21440252,2058.7,2058.0,0.001]
[1771011525506,1.52888934,2058.7,2058.0,0.49020419]
[1771011528500,2.7058298,2058.8,2058.0,0.49020419]
[1771011530385,1.177,2058.8,2058.0,0.49020419]
[1771011536205,0.31448682,2058.7,2058.0,0.49020419]
[1771011536511,1.21535443,2058.9,2058.2,0.48920419]
[1771011536685,0.0011,2058.9,2058.2,0.48920419]
[1771011538121,0.31448682,2058.8,2058.2,0.48920419]
[1771011538297,0.31448682,2058.8,2058.0,0.49020419]
[1771011538682,7.97223201,2058.7,2058.0,0.49020419]
[1771011539509,0.31448682,2058.7,2058.0,0.49020419]
[1771011540187,1.21441756,2058.6,2058.0,0.49020419]
[1771011540386,12.82975953,2058.7,2058.0,0.49020419]
[1771011540387,9.18662994,2058.7,2058.0,0.49020419]
[1771011541518,0.31448682,2058.4,2058.0,0.001]
[1771011542440,7.65774519,2058.3,2057.8,0.001]
[1771011542614,1.52907114,2058.4,2057.8,0.001]
[1771011543393,8.87227056,2058.5,2057.8,0.45828655]
[1771011545254,9.18675738,2058.5,2057.8,0.45828655]
[1771011545403,0.31448682,2058.4,2057.8,0.001]
[1771011545598,8.87227056,2058.5,2057.8,0.45828655]
[1771011545933,1.21452537,2058.5,2057.8,0.45828655]
[1771011546499,1.52901219,2058.5,2057.8,0.45828655]
[1771011548603,0.31448682,2058.5,2057.8,0.45828655]
[1771011549012,1.52896646,2058.5,2057.8,0.45828655]
[1771011549209,0.31448682,2058.4,2057.8,0.001]
[1771011549810,8.87222483,2058.5,2057.8,0.001]
[1771011549811,0.31448682,2058.2,2057.8,0.001]
[1771011550015,7.65774519,2058.1,2057.7,0.001]
[1771011550540,1.52917452,2058.2,2057.7,0.001]
[1771011552540,7.65774519,2058.1,2057.7,0.001]
[1771011552709,1.196,2058.0,2057.7,0.001]
[1771011555221,2.41079401,2058.0,2057.7,0.001]
[1771011555852,7.97223201,2057.9,2057.5,0.001]
[1771011556163,2.72528083,2058.0,2057.5,0.001]
[1771011557743,2.41079401,2058.0,2057.5,0.001]
[1771011558851,2.41079401,2058.0,2057.5,0.45828655]
[1771011562032,0.31448682,2057.8,2057.5,0.001]
[1771011562554,0.31448682,2057.6,2057.3,0.001]
[1771011563345,8.88093245,2057.7,2057.3,0.001]
[1771011564051,1.213,2057.7,2057.3,0.001]
[1771011565546,2.42795549,2057.7,2057.3,0.001]
[1771011566655,1.213,2057.7,2057.3,0.001]
[1771011567043,1.213,2057.7,2057.1,0.001]
[1771011567044,0.31448682,2057.4,2057.1,0.001]
[1771011567242,1.21518495,2057.3,2057.1,0.001]
[1771011567745,2.43617492,2057.4,2057.1,0.001]
[1771011567950,2.43612803,2057.4,2057.1,0.001]
[1771011570384,7.98441927,2057.3,2056.5,0.45828655]
[1771011570672,7.98441927,2057.3,2056.6,0.45828655]
[1771011570833,2.43612803,2057.4,2056.6,0.45828655]
[1771011571235,2.75261485,2057.4,2056.6,0.45828655]
[1771011571688,1.227,2057.4,2056.6,0.45828655]
[1771011571982,1.54348682,2057.4,2056.6,0.45828655]
[1771011572331,1.21524402,2057.2,2056.6,0.45828655]
[1771011572931,1.228,2057.1,2056.6,0.45828655]
[1771011574349,2.44330737,2057.1,2056.6,0.45828655]
[1771011574581,1.53155724,2057.5,2056.7,0.47092315]
[1771011574786,1.229,2057.3,2056.7,0.47092315]
[1771011575081,1.23,2057.4,2056.7,0.47092315]
[1771011575379,5.17646756,2057.7,2056.9,0.47092315]
[1771011575380,1.23,2057.7,2056.9,0.47092315]
[1771011576849,2.44500738,2057.7,2056.9,0.47092315]
[1771011578676,1.23,2057.7,2056.9,0.47092315]
[1771011578861,2.44495549,2057.7,2056.9,0.47092315]
[1771011579684,1.23,2057.7,2056.9,0.47092315]
[1771011580291,2.4449538,2057.7,2056.9,0.47092315]
[1771011580587,1.23,2057.7,2056.9,0.47092315]
[1771011580966,0.876,2057.9,2056.9,0.47092315]
[1771011581785,0.0011,2058.0,2056.9,0.47092315]
[1771011582403,0.0011,2058.0,2057.0,0.45900078]
[1771011583893,0.0011,2058.0,2057.1,0.45900078]
[1771011584072,0.0011,2058.0,2057.3,0.45900078]
[1771011584272,0.0011,2058.0,2057.4,0.45900078]
[1771011584588,0.0011,2058.2,2057.4,0.45900078]
[1771011585888,0.0011,2058.2,2057.5,0.45900078]
[1771011586273,0.0011,2058.5,2058.3,0.45900078]
[1771011586605,0.0011,2058.5,2057.3,12.05729196]
[1771011586606,0.0011,2058.6,2058.0,0.45900078]
[1771011586891,0.0011,2058.8,2058.2,0.45900078]
[1771011590597,0.31868682,2058.8,2057.9,0.45900078]
[1771011592207,0.0011,2058.8,2057.9,0.45900078]
[1771011593279,0.31868682,2058.8,2057.9,0.45900078]
[1771011594322,1.21435857,2058.7,2057.9,0.45900078]
[1771011595810,1.53303464,2058.8,2057.9,0.45900078]
[1771011596596,0.0011,2058.8,2057.9,0.45900078]
[1771011597715,1.21540151,2058.8,2057.9,0.45900078]
[1771011598015,1.53298833,2058.8,2057.9,0.45900078]
[1771011598188,0.31758682,2058.7,2057.9,0.45900078]
[1771011598386,0.31758682,2058.7,2057.6,0.499]
[1771011598387,0.45900078,2057.9,2057.0,0.45900078]
[1771011598586,1.214808,2058.0,2057.2,0.45900078]
[1771011598798,1.214808,2058.0,2057.3,0.61606209]
[1771011599001,6.87160669,2058.1,2057.3,0.61606209]
[1771011599002,0.31758682,2058.2,2057.4,0.45900078]
[1771011599242,2.43466174,2058.2,2057.4,0.45900078]
[1771011600255,2.43466174,2058.2,2057.3,0.61606209]
[1771011600256,1.53216534,2058.4,2057.5,1.07506287]
[1771011600454,2.75216534,2058.4,2057.5,1.07506287]
[1771011600809,7.66454046,2058.3,2057.5,1.07506287]
[1771011601618,2.75216534,2058.4,2057.5,1.07506287]
[1771011602035,2.75216534,2058.4,2057.5,0.45900078]
[1771011602437,7.66454046,2058.0,2057.6,0.61606209]
[1771011602611,7.98212728,2058.0,2057.2,0.61606209]
[1771011602925,1.21483065,2057.9,2057.2,0.49781163]
[1771011603108,1.21483065,2057.9,2057.3,0.61606209]
[1771011604444,1.21483065,2057.9,2057.0,0.49781163]
[1771011604445,2.75341747,2057.9,2057.0,0.49781163]
[1771011604658,2.75341747,2057.9,2057.1,0.61606209]
[1771011606152,1.21477781,2058.0,2057.2,0.49781163]
[1771011606326,1.221,2057.9,2057.2,0.49781163]
[1771011607151,2.43586147,2057.9,2057.2,0.49781163]
[1771011608441,1.221,2057.9,2057.3,1.11387372]
[1771011608616,1.221,2057.9,2057.3,0.49781163]
[1771011609148,2.43583267,2057.9,2057.3,0.49781163]
[1771011609321,2.43583267,2057.9,2057.4,0.61606209]
[1771011611038,1.221,2057.9,2057.4,0.61606209]
[1771011612332,0.31758682,2057.8,2056.9,0.49881163]
[1771011612531,1.03884549,2057.7,2056.9,0.49881163]
[1771011612756,2.43583597,2057.9,2056.9,0.49881163]
[1771011613056,1.03886025,2057.8,2056.9,0.49881163]
[1771011613350,1.221,2057.9,2056.9,0.49881163]
[1771011613954,0.875,2058.1,2056.9,0.49881163]
[1771011614450,1.03871519,2058.0,2057.1,0.49781163]
[1771011614657,2.08971742,2058.1,2057.1,0.49781163]
[1771011614951,1.03867773,2058.0,2057.1,0.49781163]
[1771011615153,0.875,2058.1,2057.1,0.49781163]
[1771011615458,1.03875416,2058.0,2057.1,0.49781163]
[1771011615637,2.08972604,2058.1,2057.1,0.49781163]
[1771011615834,1.03878972,2058.0,2057.1,0.49781163]
[1771011616150,2.08972604,2058.1,2057.1,0.49781163]
[1771011616330,1.03883155,2058.0,2057.1,0.49781163]
[1771011616530,2.40731286,2058.1,2057.1,0.49781163]
[1771011616741,1.03883097,2058.0,2057.1,0.49781163]
[1771011617051,2.40731286,2058.1,2057.1,0.49781163]
[1771011617354,1.03900776,2058.0,2057.1,0.49781163]
[1771011617586,2.40731286,2058.1,2057.1,0.49781163]
[1771011617858,1.03911011,2058.0,2057.1,0.49781163]
[1771011618048,2.40730832,2058.1,2057.1,0.49781163]
[1771011618237,1.03911499,2058.0,2057.1,0.49781163]
[1771011618427,1.03911499,2057.9,2057.1,0.49781163]
[1771011618627,2.40730832,2058.1,2057.1,0.49781163]
[1771011618832,1.03942317,2058.0,2057.1,0.49781163]
[1771011619030,1.03942317,2057.9,2057.1,0.49781163]
[1771011619363,2.40730832,2058.1,2057.1,0.49781163]
[1771011619559,1.03987797,2058.0,2057.1,0.49781163]
[1771011619859,2.25475988,2057.9,2057.1,0.49781163]
[1771011620076,1.21488191,2057.9,2057.1,0.49781163]
[1771011620248,1.04013572,2057.8,2057.1,0.49781163]
[1771011620452,1.21488191,2057.9,2057.1,0.49781163]
[1771011620770,1.04020821,2057.8,2057.1,0.49781163]
[1771011620946,0.31758682,2057.9,2057.1,0.49781163]
[1771011621567,1.04050168,2057.8,2057.1,0.49781163]
[1771011621778,1.21477162,2058.0,2057.1,0.49781163]
[1771011621947,1.04044294,2057.9,2057.1,0.49781163]
[1771011622147,1.0406933,2057.8,2057.1,0.49781163]
[1771011622358,1.21477162,2058.0,2057.1,0.49781163]
[1771011622359,1.53235844,2058.0,2057.1,0.49781163]
[1771011622559,1.04072787,2057.9,2057.1,0.49781163]
[1771011622776,1.04072787,2057.8,2057.1,0.49781163]
[1771011622975,1.53235844,2058.0,2057.1,0.49781163]
[1771011623150,1.04071477,2057.9,2057.1,0.49781163]
[1771011623484,1.35830159,2057.8,2057.1,0.49781163]
[1771011623660,1.04100318,2057.7,2056.9,0.49881163]
[1771011623869,0.31758682,2057.8,2056.9,0.49881163]
[1771011624073,1.04099909,2057.7,2056.9,0.49881163]
[1771011624274,1.53249633,2057.8,2056.9,0.49881163]
[1771011624469,1.04134273,2057.7,2056.9,0.49881163]
[1771011624675,1.53249633,2057.8,2056.9,0.49881163]
[1771011624890,1.04139876,2057.7,2056.9,0.49881163]
[1771011625191,2.433876,2057.9,2056.9,0.49881163]
[1771011625366,1.04182538,2057.8,2056.9,0.49881163]
[1771011625552,1.04182667,2057.7,2056.9,0.49881163]
[1771011625755,2.433876,2057.9,2056.9,0.49881163]
[1771011625978,1.04183086,2057.8,2056.9,0.49881163]
[1771011626160,1.04183086,2057.7,2056.9,0.49881163]
[1771011626365,1.21477916,2058.0,2056.9,0.49881163]
[1771011626574,1.04228744,2057.9,2056.9,0.49881163]
[1771011626783,1.21477916,2058.0,2056.9,0.49881163]
[1771011626991,1.21477916,2058.0,2057.2,0.49781163]
[1771011627676,1.21477916,2058.0,2057.0,0.49781163]
[1771011627677,0.31758682,2057.9,2057.0,0.49781163]
[1771011628497,1.21488968,2057.8,2057.0,0.49781163]
[1771011631175,0.31758682,2057.7,2056.9,0.45212982]
[1771011632308,9.19622406,2057.9,2056.9,0.45212982]
[1771011632471,1.53245733,2057.9,2057.1,0.45112982]
[1771011632792,2.75031105,2058.1,2057.3,0.45112982]
[1771011633489,1.218,2058.1,2057.5,0.45112982]
[1771011633865,1.21580317,2058.2,2057.5,0.45112982]
[1771011634065,1.53338999,2058.2,2057.5,0.45112982]
[1771011635190,1.53235844,2058.0,2057.1,0.45112982]
[1771011635492,1.53337907,2058.2,2057.1,0.45112982]
[1771011636764,0.0011,2058.2,2057.1,0.45112982]
[1771011636979,1.2157547,2058.2,2057.1,0.45112982]
[1771011637397,0.0011,2058.2,2057.1,0.45112982]
[1771011637571,0.0011,2058.2,2057.2,0.4659925]
[1771011638191,0.0011,2058.2,2057.5,0.4659925]
[1771011638383,0.0011,2058.4,2057.7,0.4659925]
[1771011638699,0.0011,2058.6,2057.7,0.4659925]
[1771011640799,0.0011,2058.9,2057.9,0.4659925]
[1771011641394,0.0011,2058.9,2058.0,0.4659925]
[1771011643478,0.0011,2058.9,2058.1,1.4349925]
[1771011643674,0.0011,2058.9,2058.2,0.4659925]
[1771011654015,1.21534061,2058.9,2058.2,0.4659925]
[1771011654798,1.53402743,2058.9,2058.2,0.4659925]
[1771011655000,0.31868682,2058.8,2058.1,0.969]
[1771011656537,1.21435857,2058.7,2058.1,0.969]
[1771011658032,1.21435857,2058.7,2058.0,0.875]
[1771011658033,0.31868682,2058.6,2058.0,0.875]
[1771011658612,1.21447656,2058.5,2057.8,0.4659925]
[1771011658816,1.53314528,2058.6,2057.8,0.4659925]
[1771011659358,4.85765175,2058.7,2057.8,0.4659925]
[1771011659359,0.31868682,2058.7,2057.8,0.4659925]
[1771011660566,1.5340759,2058.9,2057.8,0.4659925]
[1771011661322,1.21534436,2058.9,2057.8,0.4659925]
[1771011662465,1.53403118,2058.9,2057.8,0.4659925]
[1771011663428,0.31868682,2058.8,2057.8,0.4659925]
[1771011665440,1.53300365,2058.8,2057.8,0.4659925]
[1771011666371,0.31868682,2058.7,2057.8,0.4659925]
[1771011667439,1.5330953,2058.7,2057.8,0.4659925]
[1771011667962,1.04552262,2058.6,2057.8,0.4659925]
[1771011668260,1.04552262,2058.5,2057.8,0.4659925]
[1771011668429,1.04552262,2058.4,2057.8,0.4659925]
[1771011668630,1.5330953,2058.7,2057.8,0.4659925]
[1771011668864,1.04540546,2058.6,2057.8,0.4659925]
[1771011669163,1.04540546,2058.5,2057.8,0.4659925]
[1771011669367,1.04540546,2058.4,2057.8,0.4659925]
[1771011669655,1.04527973,2058.3,2057.8,0.4659925]
[1771011669858,1.21449139,2058.5,2057.8,0.4659925]
[1771011670074,1.04538527,2058.4,2057.8,0.4659925]
[1771011670231,1.04538527,2058.3,2057.8,0.4659925]
[1771011670430,1.53316306,2058.6,2057.8,0.4659925]
[1771011670641,1.04540037,2058.5,2057.8,0.4659925]
[1771011670843,1.04540037,2058.4,2057.8,0.4659925]
[1771011671059,1.36408719,2058.3,2057.7,0.875]
[1771011671355,1.04564089,2058.2,2057.7,1.34725108]
[1771011671539,1.21458035,2058.4,2057.7,1.34725108]
[1771011671738,1.04570584,2058.3,2057.7,1.34725108]
[1771011671959,1.04570584,2058.2,2057.7,1.34725108]
[1771011672130,1.21458035,2058.4,2057.7,1.34725108]
[1771011672332,1.04596791,2058.3,2057.7,1.34725108]
[1771011672543,1.04596791,2058.2,2057.7,1.34725108]
[1771011672739,1.21458035,2058.4,2057.7,1.34725108]
[1771011673062,1.04588657,2058.3,2057.8,0.47225108]
[1771011673357,1.21458035,2058.4,2057.8,0.47225108]
[1771011673358,1.04588657,2058.2,2057.8,0.47225108]
[1771011673561,1.21458035,2058.4,2057.8,0.47225108]
[1771011673759,1.04588781,2058.3,2057.8,0.47225108]
[1771011673960,1.04588781,2058.2,2057.8,0.47225108]
[1771011674174,1.53320164,2058.5,2057.8,0.47225108]
[1771011674374,1.04600142,2058.4,2057.8,0.47225108]
[1771011674547,1.04600142,2058.3,2057.8,0.47225108]
[1771011674736,1.04600142,2058.2,2057.8,0.47225108]
[1771011674937,0.31868682,2058.4,2057.8,0.47225108]
[1771011675148,1.0458982,2058.3,2057.8,0.47225108]
[1771011675349,1.0458982,2058.2,2057.8,0.47225108]
[1771011675561,0.31868682,2058.4,2057.8,0.47225108]
[1771011675747,1.04590247,2058.3,2057.8,0.47225108]
[1771011675947,1.04590247,2058.2,2057.8,0.47225108]
[1771011676153,1.53322661,2058.4,2057.8,0.47225108]
[1771011676341,1.04599037,2058.3,2057.8,0.47225108]
[1771011676536,1.04599037,2058.2,2057.8,0.47225108]
[1771011676868,0.31868682,2058.3,2057.6,0.47225108]
[1771011677068,1.0459337,2058.2,2057.6,0.47225108]
[1771011677271,0.31868682,2058.2,2057.6,0.47225108]
[1771011677843,0.31868682,2058.4,2057.6,0.47225108]
[1771011678043,1.04586962,2058.3,2057.6,0.47225108]
[1771011678375,1.04586962,2058.2,2057.6,0.47225108]
[1771011678542,0.31868682,2058.4,2057.6,0.47225108]
[1771011678746,1.04565831,2058.3,2057.6,0.47225108]
[1771011678966,0.31868682,2058.4,2057.6,0.47225108]
[1771011679883,1.53328138,2058.3,2057.6,0.47225108]
[1771011681269,1.04575288,2058.2,2057.6,0.47225108]
[1771011681584,1.04586037,2058.1,2057.6,0.47225108]
[1771011681764,1.53328138,2058.3,2057.6,0.47225108]
[1771011681963,1.04586429,2058.2,2057.6,0.47225108]
[1771011682162,1.04586429,2058.1,2057.6,0.47225108]
[1771011682364,1.53328138,2058.3,2057.6,0.47225108]
[1771011682563,1.04601651,2058.2,2057.6,0.47225108]
[1771011682764,1.04601651,2058.1,2057.6,0.47225108]
[1771011683071,0.31868682,2058.2,2057.5,0.608]
[1771011683271,1.04581512,2058.1,2057.6,0.47225108]
[1771011683474,1.04581512,2058.0,2057.6,0.47225108]
[1771011683674,0.31868682,2058.2,2057.6,0.47225108]
[1771011683876,1.04578484,2058.1,2057.6,0.47225108]
[1771011684188,1.04578484,2058.0,2057.6,0.47225108]
[1771011684352,0.31868682,2058.4,2057.6,0.47225108]
[1771011684556,0.31868682,2058.4,2057.8,0.47225108]
[1771011684557,1.04599025,2058.3,2057.8,0.47225108]
[1771011684770,1.04599025,2058.2,2057.8,0.47225108]
[1771011684957,1.04599025,2058.1,2057.8,0.47225108]
[1771011685156,0.31868682,2058.4,2057.8,0.47225108]
[1771011685379,1.04615556,2058.3,2057.9,0.47225108]
[1771011685560,11.55601449,2058.8,2057.5,8.26835732]
[1771011685561,1.53300831,2058.8,2058.1,0.47225108]
[1771011690398,0.31868682,2058.7,2058.1,0.47225108]
[1771011690575,0.31868682,2058.7,2057.8,0.47225108]
[1771011691780,8.8718941,2058.8,2057.8,0.47225108]
[1771011692164,1.21432149,2058.8,2057.8,0.47225108]
[1771011692599,1.53300831,2058.8,2057.8,0.47225108]
[1771011692895,0.31868682,2058.7,2057.8,0.47225108]
[1771011693770,0.31868682,2058.5,2057.8,0.47225108]
[1771011695394,7.97625943,2058.4,2057.6,0.49214718]
[1771011695694,1.21471259,2058.1,2057.5,0.001]
[1771011696389,1.21471259,2058.1,2057.5,0.49314718]
[1771011696575,9.19096139,2058.2,2057.5,0.49314718]
[1771011696775,1.53338878,2058.2,2057.5,0.49314718]
[1771011697600,1.04885299,2058.1,2057.5,0.49314718]
[1771011697895,1.04885299,2058.0,2057.5,0.49314718]
[1771011698092,1.04885299,2057.9,2057.5,0.49314718]
[1771011698295,2.74923423,2058.4,2057.5,0.49314718]
[1771011698495,1.04891827,2058.3,2057.5,0.49314718]
[1771011698704,1.04891827,2058.2,2057.5,0.49314718]
[1771011698995,1.36760509,2058.1,2057.5,0.001]
[1771011699186,8.70649088,2058.0,2057.5,0.001]
[1771011699390,1.04891827,2057.9,2057.5,0.001]
[1771011699610,8.70649088,2057.8,2057.3,0.001]
[1771011699902,1.216,2058.0,2057.3,0.001]
[1771011699903,1.36760509,2057.7,2057.3,0.001]
[1771011700078,1.21506682,2057.5,2057.1,0.001]
[1771011700265,1.04891827,2057.4,2057.1,0.001]
[1771011700470,1.04891827,2057.3,2057.1,0.001]
[1771011700684,7.65757261,2057.4,2057.1,0.001]
[1771011700883,1.04713422,2057.3,2057.1,0.001]
[1771011701084,10.40830635,2057.6,2057.1,0.001]
[1771011701286,1.04715889,2057.5,2057.1,0.001]
[1771011701484,1.04715889,2057.4,2057.1,0.001]
[1771011701767,1.04715889,2057.3,2057.1,0.001]
[1771011702000,7.97625943,2057.4,2056.9,0.001]
[1771011702194,2.26135442,2057.3,2056.9,0.001]
[1771011702397,1.04616947,2057.2,2056.9,0.001]
[1771011702580,1.21518495,2057.3,2056.9,0.001]
[1771011702906,1.04516326,2057.2,2056.9,0.001]
[1771011703083,1.53387177,2057.3,2056.9,0.001]
[1771011703283,1.04518412,2057.2,2056.9,0.001]
[1771011703495,1.53387177,2057.3,2056.9,0.001]
[1771011703691,1.04440805,2057.2,2056.9,0.001]
[1771011703892,1.53387177,2057.3,2056.9,0.001]
[1771011704099,1.53387177,2057.3,2056.7,0.001]
[1771011704100,1.53304899,2057.0,2056.7,0.001]
[1771011704272,0.31768682,2056.9,2056.6,0.001]
[1771011704904,1.223,2056.8,2056.6,0.001]
[1771011706208,1.21553945,2056.7,2056.5,0.001]
[1771011706778,1.21553945,2056.7,2056.2,0.001]
[1771011707893,0.31768682,2056.6,2056.2,0.001]
[1771011708293,1.21565767,2056.5,2056.2,0.001]
[1771011709126,2.76034449,2056.5,2056.0,0.001]
[1771011710192,0.31768682,2056.4,2056.0,0.001]
[1771011710593,2.76034449,2056.5,2056.0,0.001]
[1771011712797,2.40910808,2056.9,2056.0,0.48422729]
[1771011713095,2.58587569,2056.8,2056.0,0.48422729]
[1771011713413,1.54968682,2056.8,2056.0,0.48422729]
[1771011713618,0.31768682,2056.7,2056.0,0.48422729]
[1771011713999,0.31768682,2056.7,2056.0,0.001]
[1771011714928,1.53328538,2056.6,2056.0,0.001]
[1771011715817,1.21559856,2056.6,2056.0,0.001]
[1771011716118,1.21557302,2056.7,2056.0,0.48422729]
[1771011716296,1.232,2056.6,2056.0,0.48422729]
[1771011716502,1.232,2056.6,2056.0,0.35922729]
[1771011717311,0.0011,2056.8,2056.0,0.35922729]
[1771011718323,1.21658273,2056.8,2056.0,0.35922729]
[1771011718516,0.0011,2056.8,2056.0,0.35922729]
[1771011724050,0.44278682,2056.8,2056.0,0.35922729]
[1771011724229,0.0011,2056.8,2056.0,0.35922729]
[1771011725326,1.21658035,2056.8,2056.0,0.35922729]
[1771011726249,2.88626717,2056.8,2056.0,0.35922729]
[1771011727532,1.21559856,2056.6,2056.0,0.35922729]
[1771011729419,2.70159492,2056.5,2055.9,0.001]
[1771011729738,1.04423842,2056.4,2055.9,0.45972518]
[1771011730031,1.04423842,2056.3,2055.9,0.45972518]
[1771011730202,1.21566597,2056.5,2055.9,0.45972518]
[1771011730407,1.04450839,2056.4,2055.9,0.45972518]
[1771011730727,1.04450839,2056.3,2055.9,0.45972518]
[1771011730931,1.21566597,2056.5,2055.9,0.45972518]
[1771011731133,1.04450759,2056.4,2055.9,0.45972518]
[1771011731334,1.04450759,2056.3,2055.9,0.45972518]
[1771011731517,1.21566597,2056.5,2055.9,0.45972518]
[1771011731722,1.04505803,2056.4,2055.9,0.45972518]
[1771011732026,1.04505803,2056.3,2055.9,0.45972518]
[1771011732227,1.21560807,2056.6,2055.9,0.45972518]
[1771011732430,1.04532081,2056.5,2055.9,0.45972518]
[1771011732616,1.04532081,2056.4,2055.9,0.45972518]
[1771011732817,1.04532081,2056.3,2055.9,0.45972518]
[1771011733019,1.21560575,2056.6,2055.9,0.45972518]
[1771011733221,1.04534457,2056.5,2055.9,0.45972518]
[1771011733545,2.44456266,2056.7,2055.9,0.45972518]
[1771011734050,1.229,2056.7,2055.9,0.45972518]
[1771011734427,0.0011,2056.8,2055.9,0.45972518]
[1771011736581,1.04609567,2056.7,2055.9,0.45972518]
[1771011736716,1.04609567,2056.6,2055.9,0.45972518]
[1771011736919,1.04609567,2056.5,2055.9,0.45972518]
[1771011737152,1.48778249,2056.4,2055.9,0.001]
[1771011737321,1.04609567,2056.3,2055.9,0.001]
[1771011737530,1.04609567,2056.2,2055.9,0.001]
[1771011737726,1.21568489,2056.5,2055.9,0.001]
[1771011737927,1.04598109,2056.4,2055.9,0.001]
[1771011738266,1.04598109,2056.3,2055.9,0.45972518]
[1771011738425,1.04598109,2056.2,2055.9,0.45972518]
[1771011738755,0.44168682,2056.5,2055.8,0.001]
[1771011738920,0.44168682,2056.2,2055.8,0.001]
[1771011739119,1.04579901,2056.1,2055.8,0.001]
[1771011739322,1.04579901,2056.0,2055.8,0.001]
[1771011739532,1.04579901,2055.9,2055.8,0.001]
[1771011741036,1.229,2056.2,2055.8,0.001]
[1771011741224,1.04559256,2056.1,2055.8,0.001]
[1771011741556,1.04559256,2056.0,2055.8,0.001]
[1771011741852,1.04559256,2055.9,2055.8,0.001]
[1771011744857,1.04559256,2055.9,2055.7,0.001]
[1771011745169,1.04559256,2055.8,2055.6,0.001]
[1771011745334,1.04467106,2055.7,2055.6,0.001]
[1771011745662,1.21602355,2055.9,2055.6,0.001]
[1771011745957,1.04473322,2055.8,2055.6,0.001]
[1771011746131,1.21602355,2055.9,2055.6,0.001]
[1771011746338,1.04452806,2055.8,2055.6,0.001]
[1771011746523,1.04452806,2055.7,2055.6,0.001]
[1771011748552,1.65767434,2056.0,2055.6,0.001]
[1771011748754,1.04387624,2055.9,2055.6,0.001]
[1771011748973,1.04387624,2055.8,2055.6,0.001]
[1771011749142,1.21589895,2056.1,2055.6,0.001]
[1771011749342,1.04384578,2056.0,2055.6,0.001]
[1771011749675,1.04384578,2055.9,2055.6,0.46937198]
[1771011749858,1.233,2056.1,2055.6,0.46937198]
[1771011750036,1.04382383,2056.0,2055.6,0.46937198]
[1771011750231,1.04382383,2055.9,2055.6,0.46937198]
[1771011750469,0.44168682,2056.6,2055.6,0.46937198]
[1771011750668,1.234,2056.3,2055.6,0.46937198]
[1771011750840,1.04384994,2056.2,2055.6,0.46937198]
[1771011751040,1.04384994,2056.1,2055.6,0.46937198]
[1771011751249,1.04384994,2056.0,2055.6,0.46937198]
[1771011751454,1.234,2056.3,2055.6,0.46937198]
[1771011751740,1.04413631,2056.2,2055.6,0.46937198]
[1771011752052,1.04413631,2056.1,2055.6,0.46937198]
[1771011752257,1.234,2056.3,2055.6,0.46937198]
[1771011752258,1.04413631,2056.0,2055.6,0.46937198]
[1771011752466,0.0011,2056.8,2055.6,0.46937198]
[1771011752632,1.04493991,2056.7,2055.6,0.46937198]
[1771011752851,1.04493991,2056.6,2055.6,0.46937198]
[1771011753033,1.04493991,2056.5,2055.6,0.46937198]
[1771011753253,0.0011,2056.6,2055.6,0.46937198]
[1771011753453,1.0451197,2056.5,2055.6,0.46937198]
[1771011753662,0.0011,2056.6,2055.6,0.46937198]
[1771011753859,1.04500725,2056.5,2055.6,0.46937198]
[1771011754071,0.0011,2056.6,2055.6,0.46937198]
[1771011754364,1.04516519,2056.5,2055.6,0.46937198]
[1771011754550,1.04516519,2056.4,2055.6,0.46937198]